bitfinex-derivatives/quotes_BTCF0:USTF0_20260119
["timestamp","ask_amount","ask_price","bid_price","bid_amount"]
[1768849024245,0.010748,93088.0,93076.0,0.00979947]
[1768849024932,0.010748,93088.0,93076.0,0.02054847]
[1768849028646,0.010748,93084.0,93074.0,0.00974355]
[1768849029338,0.010748,93084.0,93073.0,0.09672]
[1768849029339,0.010749,93082.0,93073.0,0.09672]
[1768849029535,0.00997013,93082.0,93070.0,0.07717652]
[1768849029737,0.19017131,93080.0,93069.0,0.00236385]
[1768849030238,0.010749,93075.0,93069.0,0.00236385]
[1768849030434,0.010749,93075.0,93066.0,0.01145147]
[1768849030641,0.010749,93075.0,93064.0,0.09029148]
[1768849030945,0.010749,93075.0,93064.0,0.01311496]
[1768849031444,0.010749,93075.0,93064.0,0.00236396]
[1768849031846,0.19017131,93080.0,93064.0,0.00236396]
[1768849032037,0.01075,93073.0,93064.0,0.00236396]
[1768849032235,0.010749,93076.0,93062.0,0.01161473]
[1768849032439,0.010749,93076.0,93061.0,0.17389652]
[1768849034249,0.010749,93076.0,93061.0,0.09672]
[1768849036148,0.010749,93076.0,93061.0,0.10804379]
[1768849036352,0.10685125,93088.0,93067.0,0.00979947]
[1768849036544,0.00997013,93087.0,93067.0,0.00979947]
[1768849036852,0.00997013,93086.0,93067.0,0.00979947]
[1768849037254,0.010749,93083.0,93068.0,0.01075]
[1768849040757,0.010749,93077.0,93063.0,0.00979947]
[1768849041056,0.010749,93077.0,93063.0,0.02055047]
[1768849041655,0.01075,93075.0,93063.0,0.00979947]
[1768849041853,0.18020118,93080.0,93063.0,0.00979947]
[1768849042853,0.00997013,93082.0,93063.0,0.00979947]
[1768849043057,0.00945297,93078.0,93058.0,0.07717652]
[1768849043259,0.010751,93066.0,93054.0,0.09672]
[1768849043957,0.010751,93066.0,93054.0,0.10793696]
[1768849046154,0.010751,93066.0,93054.0,0.11767388]
[1768849046355,0.01091112,93069.0,93054.0,0.11767388]
[1768849046855,0.01075,93066.0,93054.0,0.11767388]
[1768849049667,0.01091112,93069.0,93054.0,0.11767388]
[1768849050666,0.01075,93068.0,93054.0,0.11767388]
[1768849052063,0.01075,93068.0,93055.0,0.010752]
[1768849052262,0.00016112,93069.0,93055.0,0.02048892]
[1768849052462,0.00016112,93069.0,93056.0,0.00973692]
[1768849054460,0.00016112,93069.0,93056.0,0.01908471]
[1768849054653,0.01075,93068.0,93056.0,0.01908471]
[1768849054858,0.01075,93068.0,93057.0,0.00973692]
[1768849057767,0.01075,93068.0,93056.0,0.00934779]
[1768849061370,0.01075,93066.0,93056.0,0.00934779]
[1768849061573,0.010751,93065.0,93056.0,0.00934779]
[1768849062274,0.01075,93067.0,93056.0,0.00934779]
[1768849062475,0.01075,93067.0,93056.0,0.01864398]
[1768849062874,0.010751,93066.0,93056.0,0.01864398]
[1768849065574,0.010751,93065.0,93056.0,0.01864398]
[1768849067280,0.01069183,93065.0,93056.0,0.01864398]
[1768849068573,0.00016112,93069.0,93056.0,0.01864398]
[1768849068873,0.010751,93065.0,93056.0,0.01864398]
[1768849070685,0.00016112,93069.0,93060.0,0.00929619]
[1768849071381,0.01075,93068.0,93060.0,0.00929619]
[1768849071681,0.01075,93067.0,93060.0,0.00929619]
[1768849072084,0.01075,93067.0,93059.0,0.00972638]
[1768849073780,0.00016112,93069.0,93060.0,0.00828026]
[1768849073987,0.01075,93072.0,93062.0,0.00811914]
[1768849074185,0.01075,93072.0,93062.0,0.01770622]
[1768849077287,0.00923967,93082.0,93062.0,0.00958708]
[1768849077591,0.01995238,93086.0,93054.0,0.01137808]
[1768849077592,0.010749,93078.0,93069.0,0.01764679]
[1768849077781,0.09676,93083.0,93070.0,0.00805971]
[1768849078989,0.09676,93083.0,93069.0,0.00958708]
[1768849079496,0.010749,93080.0,93069.0,0.00958708]
[1768849079994,0.09676,93083.0,93069.0,0.00958708]
[1768849080184,0.00923967,93082.0,93064.0,0.00958708]
[1768849080393,0.00923967,93082.0,93062.0,0.00806805]
[1768849081397,0.01075,93074.0,93062.0,0.00806805]
[1768849081696,0.01075,93073.0,93062.0,0.00806805]
[1768849082994,0.010749,93076.0,93063.0,0.010751]
[1768849083298,0.010749,93079.0,93065.0,0.010751]
[1768849083497,0.010749,93082.0,93065.0,0.01749663]
[1768849083698,0.010749,93080.0,93067.0,0.01075]
[1768849085000,0.09676,93083.0,93066.0,0.00790711]
[1768849085600,0.010749,93080.0,93066.0,0.00790711]
[1768849086099,0.09676,93083.0,93066.0,0.00790711]
[1768849086990,0.010749,93080.0,93066.0,0.01865711]
[1768849087199,0.010749,93080.0,93067.0,0.01750811]
[1768849087402,0.010749,93081.0,93067.0,0.01750811]
[1768849087790,0.09676,93083.0,93068.0,0.00792103]
[1768849088007,0.010749,93081.0,93068.0,0.00792103]
[1768849088805,0.09676,93083.0,93068.0,0.00792103]
[1768849089387,0.010749,93080.0,93068.0,0.00792103]
[1768849089993,0.09676,93083.0,93068.0,0.00792103]
[1768849090194,0.09676,93083.0,93067.0,0.02033708]
[1768849091404,0.010749,93082.0,93067.0,0.02033708]
[1768849094206,0.00236346,93084.0,93067.0,0.00958708]
[1768849094397,0.01160313,93084.0,93067.0,0.00958708]
[1768849095207,0.010749,93078.0,93067.0,0.00958708]
[1768849095504,0.010749,93080.0,93065.0,0.010751]
[1768849096502,0.010749,93080.0,93067.0,0.01075]
[1768849096693,0.010749,93083.0,93069.0,0.01075]
[1768849098103,0.00236346,93084.0,93073.0,0.01864963]
[1768849098306,0.00236346,93084.0,93064.0,0.010751]
[1768849098307,0.010748,93087.0,93074.0,0.02823671]
[1768849099105,0.01311134,93089.0,93074.0,0.02823671]
[1768849099709,0.010748,93088.0,93074.0,0.02823671]
[1768849100312,0.00236334,93089.0,93075.0,0.01750724]
[1768849100500,0.00236334,93089.0,93075.0,0.02825624]
[1768849100501,0.010748,93088.0,93075.0,0.02825624]
[1768849100804,0.010748,93088.0,93075.0,0.02033608]
[1768849102506,0.010748,93088.0,93075.0,0.00958708]
[1768849103210,0.010748,93088.0,93075.0,0.02033608]
[1768849113311,0.00236334,93089.0,93076.0,0.010749]
[1768849114121,0.010748,93088.0,93076.0,0.010749]
[1768849116919,0.00236334,93089.0,93076.0,0.010749]
[1768849117113,0.00236334,93089.0,93075.0,0.00958708]
[1768849117722,0.00236334,93089.0,93077.0,0.010749]
[1768849122724,0.00236334,93089.0,93076.0,0.00709596]
[1768849122935,0.010747,93095.0,93081.0,0.02708094]
[1768849123722,0.09676,93097.0,93081.0,0.01633194]
[1768849124222,0.010747,93094.0,93081.0,0.01633194]
[1768849124727,0.010747,93096.0,93082.0,0.010749]
[1768849126527,0.010747,93096.0,93081.0,0.01633194]
[1768849126528,0.0090496,93107.0,93086.0,0.01641771]
[1768849126722,0.09676,93111.0,93093.0,0.01641771]
[1768849126927,0.09676,93111.0,93093.0,0.00923598]
[1768849127327,0.0090496,93109.0,93092.0,0.010747]
[1768849128235,0.0090496,93109.0,93090.0,0.1802235]
[1768849128632,0.010746,93104.0,93091.0,0.010748]
[1768849129329,0.010747,93100.0,93087.0,0.00923598]
[1768849129531,0.0090496,93105.0,93088.0,0.00016112]
[1768849131039,0.010747,93101.0,93088.0,0.00016112]
[1768849132226,0.0090496,93105.0,93088.0,0.00016112]
[1768849133136,0.010747,93100.0,93088.0,0.00016112]
[1768849139441,0.010747,93100.0,93090.0,0.1802235]
[1768849140731,0.010747,93098.0,93090.0,0.1802235]
[1768849141533,0.00999103,93103.0,93090.0,0.1802235]
[1768849142941,0.010747,93100.0,93090.0,0.1802235]
[1768849143142,0.010746,93103.0,93090.0,0.1909715]
[1768849145241,0.010746,93102.0,93090.0,0.1802235]
[1768849145542,0.010747,93101.0,93090.0,0.1802235]
[1768849159150,0.010747,93101.0,93090.0,0.1909715]
[1768849162752,0.010746,93103.0,93090.0,0.1909715]
[1768849164049,0.00999103,93109.0,93090.0,0.1802235]
[1768849164749,0.010746,93103.0,93090.0,0.1909715]
[1768849164950,0.010746,93103.0,93090.0,0.010748]
[1768849168753,0.00999103,93109.0,93089.0,0.01734422]
[1768849168942,0.010747,93100.0,93089.0,0.01734422]
[1768849169949,0.010746,93106.0,93088.0,0.09688112]
[1768849170248,0.010747,93094.0,93088.0,0.09688112]
[1768849174862,0.010747,93094.0,93088.0,0.00016112]
[1768849175057,0.00983425,93105.0,93088.0,0.00016112]
[1768849175058,0.010747,93097.0,93088.0,0.00016112]
[1768849178264,0.010747,93096.0,93088.0,0.00016112]
[1768849179770,0.010747,93094.0,93088.0,0.00016112]
[1768849180068,0.00983425,93105.0,93088.0,0.00016112]
[1768849180668,0.010746,93104.0,93088.0,0.00016112]
[1768849181372,0.010747,93096.0,93088.0,0.00016112]
[1768849182676,0.010747,93095.0,93088.0,0.00016112]
[1768849183274,0.0094526,93100.0,93088.0,0.00016112]
[1768849183776,0.00910127,93102.0,93092.0,0.010747]
[1768849183979,0.0201986,93104.0,93092.0,0.010747]
[1768849184174,0.0201986,93104.0,93090.0,0.010748]
[1768849184777,0.0094526,93104.0,93088.0,0.00016112]
[1768849185082,0.0094526,93100.0,93088.0,0.00016112]
[1768849187377,0.010747,93097.0,93088.0,0.00016112]
[1768849191780,0.010747,93096.0,93088.0,0.00016112]
[1768849194680,0.010747,93094.0,93088.0,0.00016112]
[1768849198386,0.010747,93097.0,93088.0,0.00016112]
[1768849198578,0.00991218,93098.0,93088.0,0.00016112]
[1768849198877,0.010747,93094.0,93088.0,0.00016112]
[1768849199888,0.010747,93096.0,93088.0,0.00016112]
[1768849201990,0.010747,93095.0,93088.0,0.00016112]
[1768849202290,0.010747,93097.0,93088.0,0.00016112]
[1768849202888,0.02065918,93097.0,93088.0,0.00016112]
[1768849204990,0.00991218,93097.0,93088.0,0.00016112]
[1768849208893,0.00991218,93097.0,93088.0,0.01090912]
[1768849209593,0.00991218,93097.0,93088.0,0.00016112]
[1768849210294,0.02065918,93097.0,93088.0,0.00016112]
[1768849210593,0.00991218,93096.0,93088.0,0.00016112]
[1768849210790,0.010745,93111.0,93074.0,0.09672]
[1768849210791,0.00991218,93081.0,93074.0,0.09672]
[1768849210985,0.00971074,93088.0,93074.0,0.09672]
[1768849212393,0.010748,93087.0,93075.0,0.010749]
[1768849212895,0.02066018,93087.0,93075.0,0.010749]
[1768849213094,0.00991218,93087.0,93075.0,0.010749]
[1768849214094,0.00991218,93087.0,93076.0,0.010749]
[1768849214688,0.00991218,93087.0,93077.0,0.010749]
[1768849216795,0.00991218,93087.0,93074.0,0.107469]
[1768849216997,0.02066018,93087.0,93074.0,0.107469]
[1768849217693,0.010748,93088.0,93076.0,0.010749]
[1768849218794,0.02066018,93091.0,93076.0,0.010749]
[1768849218987,0.00991218,93090.0,93076.0,0.010749]
[1768849219189,0.010748,93089.0,93076.0,0.010749]
[1768849220991,0.010748,93087.0,93074.0,0.09672]
[1768849221294,0.010748,93087.0,93075.0,0.010749]
[1768849221681,0.02066018,93090.0,93075.0,0.010749]
[1768849222484,0.010748,93092.0,93075.0,0.00998244]
[1768849222686,0.00991218,93093.0,93078.0,0.010749]
[1768849222687,0.010748,93090.0,93078.0,0.010749]
[1768849224600,0.010747,93092.0,93078.0,0.010749]
[1768849225399,0.010748,93090.0,93076.0,0.010749]
[1768849227601,0.00981947,93101.0,93081.0,0.00958052]
[1768849227802,0.09908295,93104.0,93086.0,0.00908078]
[1768849227998,0.09908295,93104.0,93086.0,0.01982878]
[1768849228205,0.010747,93099.0,93086.0,0.01982878]
[1768849228894,0.010747,93098.0,93086.0,0.01982878]
[1768849229497,0.010747,93098.0,93086.0,0.00908078]
[1768849230110,0.09908295,93104.0,93086.0,0.00908078]
[1768849230309,0.010747,93097.0,93086.0,0.00908078]
[1768849230506,0.00998059,93102.0,93086.0,0.00908078]
[1768849233409,0.010747,93096.0,93086.0,0.00908078]
[1768849235107,0.010746,93101.0,93088.0,0.010748]
[1768849235307,0.00016112,93102.0,93090.0,0.010748]
[1768849235508,0.00016112,93102.0,93094.0,0.00908078]
[1768849235814,0.00236295,93104.0,93092.0,0.010747]
[1768849236017,0.010746,93106.0,93092.0,0.010747]
[1768849236217,0.010746,93106.0,93090.0,0.18021599]
[1768849236609,0.00981947,93108.0,93090.0,0.18929677]
[1768849236813,0.010746,93109.0,93094.0,0.00908078]
[1768849238214,0.00981947,93112.0,93094.0,0.00908078]
[1768849239416,0.010746,93109.0,93094.0,0.00908078]
[1768849240818,0.010746,93107.0,93094.0,0.00908078]
[1768849241515,0.010746,93107.0,93094.0,0.01982778]
[1768849241810,0.00981947,93112.0,93094.0,0.01982778]
[1768849242016,0.010745,93110.0,93094.0,0.01982778]
[1768849242715,0.010746,93108.0,93094.0,0.01982778]
[1768849242916,0.010746,93108.0,93096.0,0.00900165]
[1768849243107,0.010746,93108.0,93097.0,0.00963474]
[1768849248718,0.010745,93111.0,93097.0,0.00963474]
[1768849249015,0.010745,93111.0,93098.0,0.010747]
[1768849249406,0.010745,93111.0,93098.0,0.02038174]
[1768849249607,0.010745,93113.0,93099.0,0.010747]
[1768849252113,0.010745,93113.0,93100.0,0.19096199]
[1768849252709,0.010745,93113.0,93100.0,0.010746]
[1768849253808,0.00999471,93123.0,93104.0,0.010746]
[1768849254008,0.010745,93118.0,93105.0,0.00959822]
[1768849254211,0.010745,93118.0,93106.0,0.00959822]
[1768849258623,0.01310644,93124.0,93110.0,0.02034322]
[1768849259212,0.010744,93122.0,93110.0,0.02034322]
[1768849260621,0.010744,93122.0,93110.0,0.00959822]
[1768849260818,0.00236244,93124.0,93110.0,0.00959822]
[1768849261030,0.00236233,93129.0,93119.0,0.00959822]
[1768849261218,0.01235704,93129.0,93113.0,0.00959822]
[1768849261618,0.010744,93121.0,93113.0,0.00959822]
[1768849262023,0.010744,93124.0,93113.0,0.00959822]
[1768849262225,0.01235704,93129.0,93108.0,0.00975934]
[1768849262417,0.010745,93112.0,93108.0,1.2e-07]
[1768849262615,0.010745,93112.0,93103.0,0.09672]
[1768849264124,0.010745,93110.0,93103.0,0.09672]
[1768849264422,0.18970386,93120.0,93100.0,0.09672]
[1768849264423,0.02073971,93116.0,93100.0,0.09672]
[1768849264621,0.00999471,93116.0,93100.0,0.09672]
[1768849265222,0.010746,93109.0,93100.0,0.09672]
[1768849265618,0.010746,93107.0,93100.0,0.09672]
[1768849266426,0.010746,93107.0,93099.0,0.09672]
[1768849267017,0.010746,93106.0,93098.0,0.00959822]
[1768849267222,0.010746,93104.0,93098.0,0.02882616]
[1768849267929,0.010746,93107.0,93098.0,0.02882616]
[1768849271431,0.010745,93110.0,93098.0,0.03957316]
[1768849271627,0.010745,93112.0,93098.0,0.05846991]
[1768849271834,0.010745,93112.0,93099.0,0.00929853]
[1768849272025,0.010745,93112.0,93100.0,0.00959822]
[1768849272231,0.010745,93112.0,93102.0,0.01889675]
[1768849272530,0.010745,93112.0,93104.0,0.00236295]
[1768849274435,0.1902107,93120.0,93104.0,0.00236295]
[1768849274633,0.00999471,93119.0,93104.0,0.00236295]
[1768849274833,0.010745,93111.0,93104.0,0.00236295]
[1768849275537,0.00999471,93119.0,93104.0,0.00236295]
[1768849275833,0.010745,93115.0,93104.0,0.00236295]
[1768849276435,0.010745,93116.0,93104.0,0.00236295]
[1768849277025,0.010744,93119.0,93105.0,0.010746]
[1768849278230,0.010744,93119.0,93106.0,0.010746]
[1768849278432,0.010744,93121.0,93107.0,0.010746]
[1768849278734,0.00999471,93122.0,93105.0,0.010746]
[1768849279033,0.010744,93119.0,93106.0,0.010746]
[1768849279232,0.00016112,93126.0,93114.0,0.010745]
[1768849279529,0.00016112,93126.0,93115.0,0.01889675]
[1768849280330,0.00016112,93126.0,93116.0,0.00929853]
[1768849281130,0.00016112,93126.0,93115.0,0.02034322]
[1768849282936,0.00016112,93126.0,93115.0,0.03013413]
[1768849284533,0.09672,93131.0,93121.0,0.010744]
[1768849284741,0.010742,93136.0,93121.0,0.010744]
[1768849284922,0.107462,93136.0,93121.0,0.02053491]
[1768849285230,0.107462,93136.0,93123.0,0.010744]
[1768849285638,0.09672,93136.0,93121.0,0.00979091]
[1768849285839,0.010743,93135.0,93121.0,0.02053491]
[1768849286536,0.010743,93135.0,93122.0,0.010744]
[1768849286739,0.09672,93136.0,93124.0,0.010744]
[1768849286937,0.010742,93138.0,93125.0,0.00979091]
[1768849287336,0.10572627,93142.0,93124.0,0.00969861]
[1768849287732,0.010743,93135.0,93124.0,0.00969861]
[1768849288935,0.010743,93133.0,93124.0,0.00969861]
[1768849289830,0.010743,93131.0,93124.0,0.00969861]
[1768849292240,0.00900627,93141.0,93124.0,0.00969861]
[1768849292439,0.00900627,93141.0,93122.0,0.00979091]
[1768849292440,0.010743,93128.0,93122.0,0.00979091]
[1768849292640,0.010744,93122.0,93113.0,0.00969861]
[1768849292838,0.010744,93122.0,93111.0,0.00016112]
[1768849293542,0.010744,93125.0,93113.0,0.010745]
[1768849293942,0.010744,93123.0,93111.0,0.00995203]
[1768849294135,0.010744,93123.0,93111.0,0.00016112]
[1768849294334,0.010744,93125.0,93111.0,0.00016112]
[1768849294534,0.010744,93125.0,93111.0,0.01090612]
[1768849294936,0.010743,93127.0,93111.0,0.01965064]
[1768849296445,0.010743,93127.0,93113.0,0.010745]
[1768849297048,0.010743,93127.0,93115.0,0.010745]
[1768849298951,0.010743,93131.0,93117.0,0.010744]
[1768849299141,0.010743,93129.0,93117.0,0.010744]
[1768849299340,0.010743,93129.0,93115.0,0.010745]
[1768849300349,0.010743,93127.0,93115.0,0.010745]
[1768849301552,0.010744,93126.0,93113.0,0.010745]
[1768849301953,0.010744,93125.0,93113.0,0.010745]
[1768849304049,0.010744,93125.0,93111.0,0.00985973]
[1768849304253,0.010744,93123.0,93111.0,0.01090612]
[1768849308358,0.010744,93124.0,93113.0,0.010745]
[1768849308749,0.010743,93129.0,93112.0,0.01925754]
[1768849309659,0.010743,93131.0,93115.0,0.00970379]
[1768849309854,0.010743,93131.0,93120.0,0.010744]
[1768849310054,0.010743,93133.0,93120.0,0.010744]
[1768849310757,0.010742,93136.0,93123.0,0.010744]
[1768849311048,0.02052312,93141.0,93120.0,0.01925754]
[1768849311250,0.010743,93130.0,93120.0,0.01925754]
[1768849311553,0.010743,93129.0,93116.0,0.02044879]
[1768849312253,0.010743,93128.0,93116.0,0.02044879]
[1768849312749,0.010743,93130.0,93116.0,0.02044879]
[1768849313163,0.010743,93130.0,93118.0,0.010744]
[1768849314153,0.010743,93130.0,93112.0,0.010745]
[1768849314154,0.0092353,93130.0,93112.0,0.010745]
[1768849314363,0.0092353,93130.0,93111.0,0.00016112]
[1768849314364,0.0092353,93126.0,93113.0,0.09668]
[1768849314552,0.0199793,93126.0,93113.0,0.107425]
[1768849314860,0.010744,93126.0,93113.0,0.107425]
[1768849316063,0.010744,93124.0,93113.0,0.09668]
[1768849319069,0.010744,93127.0,93113.0,0.09668]
[1768849320175,0.0092353,93133.0,93121.0,0.010744]
[1768849320568,0.0199783,93133.0,93119.0,0.010744]
[1768849321367,0.010743,93131.0,93119.0,0.010744]
[1768849321666,0.0092353,93133.0,93116.0,0.010745]
[1768849321856,0.010744,93126.0,93114.0,0.01957803]
[1768849322056,0.0092353,93131.0,93113.0,0.09668]
[1768849322270,0.010744,93121.0,93113.0,0.09668]
[1768849323671,0.010744,93119.0,93111.0,0.00016112]
[1768849324062,0.010744,93121.0,93111.0,0.00016112]
[1768849325773,0.010744,93123.0,93111.0,0.00016112]
[1768849326069,0.010744,93125.0,93111.0,0.01090612]
[1768849326770,0.010744,93125.0,93111.0,0.00016112]
[1768849327774,0.010744,93125.0,93113.0,0.010745]
[1768849328073,0.0097138,93127.0,93111.0,0.00016112]
[1768849328263,0.010744,93124.0,93111.0,0.00016112]
[1768849328968,0.010744,93124.0,93112.0,0.010745]
[1768849332377,0.010744,93126.0,93114.0,0.010745]
[1768849332962,0.0092353,93131.0,93111.0,0.01090612]
[1768849333774,0.010744,93125.0,93112.0,0.010745]
[1768849333974,0.0092353,93131.0,93114.0,0.010745]
[1768849334576,0.010744,93124.0,93111.0,0.01973915]
[1768849334874,0.09668,93134.0,93111.0,0.01973915]
[1768849334875,0.09668,93134.0,93117.0,0.00996539]
[1768849335076,0.1059153,93134.0,93116.0,0.00961264]
[1768849335474,0.010744,93125.0,93116.0,0.00961264]
[1768849336966,0.010743,93128.0,93116.0,0.00961264]
[1768849337575,0.01074,93154.0,93118.0,0.01957803]
[1768849337576,0.0092353,93138.0,93118.0,0.01957803]
[1768849337767,0.09668,93140.0,93127.0,0.010743]
[1768849338079,0.107422,93140.0,93127.0,0.010743]
[1768849338667,0.107422,93143.0,93125.0,0.01957803]
[1768849339275,0.010742,93138.0,93125.0,0.03032203]
[1768849341077,0.09668,93143.0,93125.0,0.01957803]
[1768849341777,0.010743,93133.0,93125.0,0.00961264]
[1768849342681,0.010743,93130.0,93121.0,0.00996539]
[1768849342879,0.010743,93132.0,93121.0,0.00996539]
[1768849343086,0.0092353,93141.0,93121.0,0.00996539]
[1768849343680,0.010743,93135.0,93122.0,0.010744]
[1768849344074,0.0203272,93140.0,93121.0,0.01989194]
[1768849344274,0.010743,93131.0,93121.0,0.01989194]
[1768849344780,0.010742,93139.0,93121.0,0.01989194]
[1768849345579,0.010743,93131.0,93121.0,0.01989194]
[1768849348774,0.0095852,93140.0,93121.0,0.01989194]
[1768849349083,0.18963279,93140.0,93121.0,0.03063594]
[1768849349475,0.010743,93136.0,93122.0,0.010744]
[1768849351888,0.010743,93134.0,93122.0,0.010744]
[1768849354790,0.18963279,93140.0,93122.0,0.010744]
[1768849355793,0.0095852,93140.0,93122.0,0.02014304]
[1768849355983,0.18963279,93140.0,93122.0,0.02014304]
[1768849356390,0.010742,93136.0,93122.0,0.02014304]
[1768849356693,0.18963279,93140.0,93122.0,0.02014304]
[1768849358198,0.18963279,93140.0,93122.0,0.00939904]
[1768849359402,0.010742,93136.0,93122.0,0.02014304]
[1768849360102,0.18963279,93140.0,93122.0,0.02014304]
[1768849360989,0.18963279,93140.0,93122.0,0.00939904]
[1768849361193,0.00900961,93136.0,93120.0,0.18004759]
[1768849361394,0.00900961,93136.0,93119.0,0.09668]
[1768849361902,0.010743,93131.0,93119.0,0.09668]
[1768849362608,0.010743,93131.0,93120.0,0.18004759]
[1768849363111,0.01836073,93139.0,93120.0,0.18004759]
[1768849363499,0.01836073,93139.0,93120.0,0.19079159]
[1768849363701,0.01836073,93139.0,93122.0,0.010744]
[1768849364209,0.01836073,93139.0,93120.0,0.18004759]
[1768849364510,0.01836073,93139.0,93121.0,0.010744]
[1768849365411,0.010743,93135.0,93121.0,0.010744]
[1768849366108,0.010743,93134.0,93121.0,0.010744]
[1768849366906,0.010743,93132.0,93121.0,0.010744]
[1768849370409,0.010742,93138.0,93120.0,0.189983]
[1768849371505,0.010743,93129.0,93119.0,0.09668]
[1768849372299,0.010743,93128.0,93119.0,0.09668]
[1768849373212,0.010743,93130.0,93119.0,0.09668]
[1768849373415,0.010743,93130.0,93119.0,0.10594303]
[1768849373810,0.00900961,93137.0,93119.0,0.09668]
[1768849374116,0.010743,93128.0,93119.0,0.09668]
[1768849374816,0.010744,93125.0,93116.0,0.09668]
[1768849375015,0.010744,93124.0,93116.0,0.09668]
[1768849375212,0.18004759,93130.0,93116.0,0.09668]
[1768849375709,0.18004759,93130.0,93111.0,0.02076818]
[1768849375710,0.010744,93122.0,93113.0,0.09668]
[1768849376108,0.010744,93121.0,93111.0,0.00016112]
[1768849376306,0.010744,93119.0,93111.0,0.00016112]
[1768849376907,0.010744,93122.0,93111.0,0.00016112]
[1768849378017,0.010744,93125.0,93111.0,0.00016112]
[1768849378219,0.010744,93124.0,93111.0,0.00016112]
[1768849378408,0.010744,93124.0,93111.0,0.01090612]
[1768849379713,0.010744,93127.0,93113.0,0.010745]
[1768849380213,0.00929575,93128.0,93115.0,0.010745]
[1768849380419,0.010743,93128.0,93115.0,0.010745]
[1768849382908,0.010743,93130.0,93113.0,0.01912509]
[1768849383717,0.010743,93130.0,93118.0,0.010744]
[1768849383917,0.010743,93129.0,93117.0,0.010745]
[1768849384814,0.010743,93130.0,93115.0,0.00926303]
[1768849385916,0.010743,93130.0,93119.0,0.010744]
[1768849386217,0.010743,93130.0,93117.0,0.010745]
[1768849387510,0.010743,93129.0,93117.0,0.010745]
[1768849389014,0.010743,93129.0,93114.0,0.02060706]
[1768849389521,0.09668,93132.0,93114.0,0.00986206]
[1768849389820,0.10597575,93132.0,93114.0,0.00986206]
[1768849390121,0.010744,93125.0,93114.0,0.00986206]
[1768849395027,0.010744,93124.0,93114.0,0.00986206]
[1768849395325,0.02003875,93131.0,93114.0,0.00986206]
[1768849395525,0.00929575,93130.0,93111.0,0.00016112]
[1768849396426,0.010744,93122.0,93111.0,0.00016112]
[1768849397425,0.010744,93124.0,93111.0,0.01090612]
[1768849398728,0.010744,93124.0,93112.0,0.010745]
[1768849403835,0.00974302,93129.0,93111.0,0.00016112]
[1768849404733,0.010744,93120.0,93111.0,0.00016112]
[1768849404931,0.00974302,93127.0,93111.0,0.00016112]
[1768849405133,0.00974302,93126.0,93111.0,0.00016112]
[1768849406538,0.010744,93119.0,93111.0,0.00016112]
[1768849406836,0.00974302,93126.0,93111.0,0.00016112]
[1768849407437,0.010745,93118.0,93111.0,0.00016112]
[1768849409038,0.010744,93121.0,93111.0,0.00016112]
[1768849410932,0.010744,93120.0,93111.0,0.00016112]
[1768849413036,0.010744,93119.0,93111.0,0.00016112]
[1768849413236,0.010745,93118.0,93111.0,0.00016112]
[1768849414253,0.010745,93116.0,93105.0,0.010746]
[1768849414447,0.010745,93116.0,93105.0,0.107426]
[1768849414648,0.010745,93116.0,93105.0,0.09668]
[1768849415149,0.02048702,93118.0,93105.0,0.107426]
[1768849416054,0.010744,93118.0,93106.0,0.010746]
[1768849425459,0.010744,93118.0,93105.0,0.09668]
[1768849426061,0.02048702,93122.0,93105.0,0.09668]
[1768849426270,0.010744,93122.0,93105.0,0.09668]
[1768849426473,0.010744,93122.0,93106.0,0.01933755]
[1768849426676,0.010744,93122.0,93107.0,0.01933755]
[1768849427469,0.010744,93122.0,93109.0,0.010745]
[1768849427869,0.010744,93122.0,93110.0,0.010745]
[1768849428768,0.01090512,93124.0,93111.0,0.010745]
[1768849429469,0.010744,93123.0,93111.0,0.010745]
[1768849430271,0.00016112,93124.0,93109.0,0.010745]
[1768849430973,0.010744,93119.0,93107.0,0.01933755]
[1768849434379,0.010745,93117.0,93107.0,0.01933755]
[1768849436966,0.010745,93116.0,93107.0,0.01933755]
[1768849440986,0.010745,93116.0,93107.0,0.00946042]
[1768849441183,0.00016112,93124.0,93107.0,0.00946042]
[1768849441484,0.010745,93116.0,93107.0,0.00946042]
[1768849441672,0.010744,93118.0,93107.0,0.00946042]
[1768849442483,0.010744,93123.0,93107.0,0.00946042]
[1768849443183,0.010745,93116.0,93107.0,0.00946042]
[1768849445076,0.010744,93119.0,93107.0,0.00946042]
[1768849445275,0.010744,93119.0,93107.0,0.02978714]
[1768849445476,0.010744,93119.0,93109.0,0.00958072]
[1768849445677,0.010744,93119.0,93108.0,0.00964605]
[1768849450586,0.00948154,93123.0,93105.0,0.07736673]
[1768849450769,0.02022554,93122.0,93104.0,0.07972968]
[1768849451082,0.010745,93112.0,93104.0,0.07972968]
[1768849451280,0.00948154,93120.0,93104.0,0.07972968]
[1768849451487,0.00948154,93116.0,93099.0,0.09668]
[1768849451676,0.00948154,93115.0,93099.0,0.09668]
[1768849452381,0.010745,93110.0,93099.0,0.09668]
[1768849454580,0.00948154,93109.0,93093.0,1.30444]
[1768849454776,0.010746,93105.0,93093.0,1.30444]
[1768849454973,0.010746,93103.0,93092.0,0.09672]
[1768849455580,0.010746,93103.0,93092.0,0.10741572]
[1768849455779,0.010746,93101.0,93092.0,0.09672]
[1768849456082,0.00948154,93106.0,93092.0,0.09672]
[1768849456279,0.00948154,93106.0,93085.0,1.31416605]
[1768849456483,0.00948154,93104.0,93085.0,1.41088605]
[1768849457291,0.00964266,93104.0,93085.0,1.41088605]
[1768849457479,0.010747,93098.0,93085.0,1.42046677]
[1768849458786,0.00948154,93099.0,93084.0,0.00236346]
[1768849459088,0.010748,93092.0,93078.0,0.09672]
[1768849460585,0.010748,93092.0,93078.0,0.11594677]
[1768849460987,0.010747,93095.0,93079.0,0.010749]
[1768849461188,0.010747,93095.0,93079.0,0.02997577]
[1768849461387,0.010747,93095.0,93079.0,0.04112655]
[1768849462590,0.00948154,93098.0,93079.0,0.02079683]
[1768849462892,0.010747,93095.0,93080.0,0.010749]
[1768849463585,0.010747,93095.0,93079.0,0.00902759]
[1768849464483,0.010747,93093.0,93079.0,0.01985792]
[1768849465794,0.010747,93096.0,93081.0,0.010749]
[1768849465995,0.010747,93097.0,93083.0,0.010748]
[1768849466887,0.00931623,93099.0,93080.0,0.010749]